[Event "Live Chess"]
[Site "Chess.com"]
[Date "2023.05.21"]
[Round "-"]
[White "JohanKjeldahl"]
[Black "MJMykh"]
[Result "1-0"]
[WhiteElo "1865"]
[BlackElo "1174"]
[TimeControl "300"]
[EndTime "5:26:44 PDT"]
[Termination "JohanKjeldahl won by checkmate"]

1. e4 {[%clk 0:04:58.4]} 1... e5 {[%clk 0:04:58.5]} 2. Nf3 {[%clk 0:04:57.3]}
2... Nc6 {[%clk 0:04:56.9]} 3. d4 {[%clk 0:04:55.9]} 3... exd4 {[%clk
0:04:55.4]} 4. c3 {[%clk 0:04:55.1]} 4... dxc3 {[%clk 0:04:53.9]} 5. Bc4 {[%clk
0:04:54.1]} 5... Nf6 {[%clk 0:04:53.4]} 6. Nxc3 {[%clk 0:04:51.5]} 6... h6
{[%clk 0:04:52.2]} 7. O-O {[%clk 0:04:50.3]} 7... Bb4 {[%clk 0:04:50.4]} 8. e5
{[%clk 0:04:48.4]} 8... Bxc3 {[%clk 0:04:49.1]} 9. bxc3 {[%clk 0:04:46]} 9...
Ng8 {[%clk 0:04:43.9]} 10. Qd5 {[%clk 0:04:43.7]} 10... Qe7 {[%clk 0:04:41.6]}
11. Re1 {[%clk 0:04:38.8]} 11... Qe6 {[%clk 0:04:39.6]} 12. Qc5 {[%clk
0:04:32.7]} 12... Qe7 {[%clk 0:04:32.2]} 13. Ba3 {[%clk 0:04:27.6]} 13... Qxc5
{[%clk 0:04:30.1]} 14. Bxc5 {[%clk 0:04:26.1]} 14... Nge7 {[%clk 0:04:29.7]} 15.
Rad1 {[%clk 0:04:18.3]} 15... O-O {[%clk 0:04:25.6]} 16. Bb5 {[%clk 0:04:13.6]}
16... Re8 {[%clk 0:04:22.8]} 17. Rd2 {[%clk 0:03:59.1]} 17... a6 {[%clk
0:04:19.6]} 18. Ba4 {[%clk 0:03:56.2]} 18... b5 {[%clk 0:04:17.6]} 19. Bb3
{[%clk 0:03:55]} 19... Na5 {[%clk 0:04:16.5]} 20. Bc2 {[%clk 0:03:49.4]} 20...
Nc4 {[%clk 0:04:14.6]} 21. Rde2 {[%clk 0:03:45.8]} 21... Bb7 {[%clk 0:04:01.6]}
22. Nd4 {[%clk 0:03:44.3]} 22... Nd5 {[%clk 0:03:55.6]} 23. Nf5 {[%clk
0:03:36.9]} 23... Nxc3 {[%clk 0:03:49.3]} 24. Ne7+ {[%clk 0:03:28.5]} 24... Kh8
{[%clk 0:03:47.9]} 25. f3 {[%clk 0:03:12]} 25... Nxe2+ {[%clk 0:03:46.3]} 26.
Rxe2 {[%clk 0:03:10.9]} 26... Na5 {[%clk 0:03:32.4]} 27. Nf5 {[%clk 0:03:04.2]}
27... Nc6 {[%clk 0:03:26.7]} 28. f4 {[%clk 0:03:02]} 28... f6 {[%clk 0:03:21.4]}
29. Nh4 {[%clk 0:02:54.5]} 29... fxe5 {[%clk 0:03:19.2]} 30. fxe5 {[%clk
0:02:51]} 30... Nxe5 {[%clk 0:03:14.8]} 31. Rxe5 {[%clk 0:02:48.8]} 31... Rxe5
{[%clk 0:03:12.7]} 32. Ng6+ {[%clk 0:02:47.7]} 32... Kg8 {[%clk 0:03:10.3]} 33.
Nxe5 {[%clk 0:02:45.6]} 33... d6 {[%clk 0:03:06.9]} 34. Bb3+ {[%clk 0:02:43.1]}
34... Kf8 {[%clk 0:03:04.3]} 35. Ng6+ {[%clk 0:02:40.8]} 35... Ke8 {[%clk
0:03:01.9]} 36. Be3 {[%clk 0:02:34]} 36... Kd7 {[%clk 0:02:59.5]} 37. Kf2 {[%clk
0:02:30]} 37... a5 {[%clk 0:02:56.1]} 38. Nf4 {[%clk 0:02:21.6]} 38... a4 {[%clk
0:02:53.9]} 39. Be6+ {[%clk 0:02:20.3]} 39... Kc6 {[%clk 0:02:52.3]} 40. Bd5+
{[%clk 0:02:19.4]} 40... Kd7 {[%clk 0:02:50.2]} 41. Bxb7 {[%clk 0:02:18.3]}
41... Rb8 {[%clk 0:02:49.5]} 42. Bd5 {[%clk 0:02:13.2]} 42... c6 {[%clk
0:02:46.9]} 43. Be6+ {[%clk 0:02:10.8]} 43... Kc7 {[%clk 0:02:45.5]} 44. Ke2
{[%clk 0:02:08.6]} 44... c5 {[%clk 0:02:43.2]} 45. Kd3 {[%clk 0:02:06.5]} 45...
Kc6 {[%clk 0:02:42.3]} 46. Bd5+ {[%clk 0:02:04]} 46... Kd7 {[%clk 0:02:41.1]}
47. Ne6 {[%clk 0:02:00.5]} 47... c4+ {[%clk 0:02:39.3]} 48. Kc3 {[%clk
0:01:57.4]} 48... Rc8 {[%clk 0:02:29.8]} 49. Nxg7 {[%clk 0:01:54.7]} 49... Ke7
{[%clk 0:02:24.3]} 50. Nf5+ {[%clk 0:01:50.8]} 50... Kf6 {[%clk 0:02:22.8]} 51.
g4 {[%clk 0:01:48.1]} 51... Ke5 {[%clk 0:02:20.7]} 52. Bb7 {[%clk 0:01:41.2]}
52... Rb8 {[%clk 0:02:16.3]} 53. Bg2 {[%clk 0:01:35.8]} 53... Rh8 {[%clk
0:02:14.4]} 54. Bd4+ {[%clk 0:01:33.2]} 54... Ke6 {[%clk 0:02:12.1]} 55. Bxh8
{[%clk 0:01:31.6]} 55... d5 {[%clk 0:02:11.6]} 56. Nd4+ {[%clk 0:01:28.8]} 56...
Kd6 {[%clk 0:02:10.3]} 57. Nxb5+ {[%clk 0:01:27.6]} 57... Kc5 {[%clk 0:02:09]}
58. Nd4 {[%clk 0:01:24.2]} 58... Kd6 {[%clk 0:02:07.9]} 59. a3 {[%clk
0:01:22.3]} 59... Kc5 {[%clk 0:02:07.8]} 60. Bg7 {[%clk 0:01:19.2]} 60... Kd6
{[%clk 0:02:06.9]} 61. Bxh6 {[%clk 0:01:18.2]} 61... Ke7 {[%clk 0:02:06.6]} 62.
Bg5+ {[%clk 0:01:16.6]} 62... Kf7 {[%clk 0:02:06.2]} 63. Bxd5+ {[%clk 0:01:15]}
63... Kg6 {[%clk 0:02:05.6]} 64. h4 {[%clk 0:01:13.5]} 64... Kh7 {[%clk
0:02:04.3]} 65. Be4+ {[%clk 0:01:12.1]} 65... Kg7 {[%clk 0:02:04.1]} 66. Kxc4
{[%clk 0:01:10.8]} 66... Kh8 {[%clk 0:02:04]} 67. h5 {[%clk 0:01:09]} 67... Kg8
{[%clk 0:02:03.9]} 68. Ne6 {[%clk 0:01:05.9]} 68... Kf7 {[%clk 0:02:03.1]} 69.
Kd5 {[%clk 0:01:02.7]} 69... Kg8 {[%clk 0:02:02.9]} 70. Ke5 {[%clk 0:00:58.7]}
70... Kf7 {[%clk 0:02:01.6]} 71. Bg6+ {[%clk 0:00:56.5]} 71... Kg8 {[%clk
0:02:00.7]} 72. Kf5 {[%clk 0:00:51.9]} 72... Kh8 {[%clk 0:01:59.7]} 73. Bf6+
{[%clk 0:00:49.9]} 73... Kg8 {[%clk 0:01:58.5]} 74. Be8 {[%clk 0:00:46.5]} 74...
Kh7 {[%clk 0:01:57.4]} 75. Kg5 {[%clk 0:00:43.9]} 75... Kg8 {[%clk 0:01:55.9]}
76. Nd8 {[%clk 0:00:39]} 76... Kh7 {[%clk 0:01:54.9]} 77. Bxa4 {[%clk
0:00:35.6]} 77... Kg8 {[%clk 0:01:53.4]} 78. Bb3+ {[%clk 0:00:32.6]} 78... Kh7
{[%clk 0:01:52.9]} 79. Nf7 {[%clk 0:00:29.3]} 79... Kg8 {[%clk 0:01:51.6]} 80.
a4 {[%clk 0:00:24.6]} 80... Kh7 {[%clk 0:01:51.2]} 81. a5 {[%clk 0:00:23.7]}
81... Kg8 {[%clk 0:01:51]} 82. a6 {[%clk 0:00:22.9]} 82... Kf8 {[%clk
0:01:49.7]} 83. a7 {[%clk 0:00:21.5]} 83... Kg8 {[%clk 0:01:48.9]} 84. a8=R+
{[%clk 0:00:18.6]} 84... Kh7 {[%clk 0:01:48.6]} 85. Rh8# {[%clk 0:00:16.6]} 1-0

[Event "Live Chess"]
[Site "Chess.com"]
[Date "2023.05.21"]
[Round "-"]
[White "The_Straightforward_Rook"]
[Black "yarek"]
[Result "1-0"]
[WhiteElo "1986"]
[BlackElo "1868"]
[TimeControl "300"]
[EndTime "5:26:56 PDT"]
[Termination "The_Straightforward_Rook won on time"]

1. d4 {[%clk 0:04:57]} 1... g6 {[%clk 0:04:54.9]} 2. c4 {[%clk 0:04:55.8]} 2...
c6 {[%clk 0:04:50.3]} 3. Nc3 {[%clk 0:04:54.3]} 3... d5 {[%clk 0:04:46.7]} 4.
Nf3 {[%clk 0:04:48.3]} 4... Bg7 {[%clk 0:04:44.3]} 5. Bf4 {[%clk 0:04:46.1]}
5... dxc4 {[%clk 0:04:34]} 6. e3 {[%clk 0:04:43.8]} 6... b5 {[%clk 0:04:25.8]}
7. a4 {[%clk 0:04:42.3]} 7... b4 {[%clk 0:04:18.8]} 8. Ne4 {[%clk 0:04:39.5]}
8... Ba6 {[%clk 0:04:06.8]} 9. Nc5 {[%clk 0:04:35.5]} 9... Qc8 {[%clk
0:03:32.8]} 10. Qc2 {[%clk 0:03:59.8]} 10... Nf6 {[%clk 0:03:05.3]} 11. Bxc4
{[%clk 0:03:39.3]} 11... Bxc4 {[%clk 0:03:01.8]} 12. Qxc4 {[%clk 0:03:39.2]}
12... a5 {[%clk 0:02:55.8]} 13. Ne5 {[%clk 0:03:36.5]} 13... O-O {[%clk
0:02:49.5]} 14. O-O {[%clk 0:03:33]} 14... Nd5 {[%clk 0:02:44]} 15. Bg3 {[%clk
0:03:28.9]} 15... Bxe5 {[%clk 0:02:15.9]} 16. Bxe5 {[%clk 0:03:26.5]} 16... f6
{[%clk 0:02:11.8]} 17. Bg3 {[%clk 0:03:23.2]} 17... e6 {[%clk 0:02:05.6]} 18. e4
{[%clk 0:03:19.2]} 18... Nb6 {[%clk 0:01:32.5]} 19. Qxe6+ {[%clk 0:03:17.7]}
19... Qxe6 {[%clk 0:01:29.1]} 20. Nxe6 {[%clk 0:03:17.6]} 20... Rf7 {[%clk
0:01:22.5]} 21. b3 {[%clk 0:03:15.2]} 21... N8d7 {[%clk 0:01:17.5]} 22. Rac1
{[%clk 0:03:13.1]} 22... Rc8 {[%clk 0:01:14.1]} 23. f3 {[%clk 0:03:04.5]} 23...
c5 {[%clk 0:01:11.3]} 24. Nxc5 {[%clk 0:03:02]} 24... Nxc5 {[%clk 0:01:08.8]}
25. Rxc5 {[%clk 0:03:01.5]} 25... Rxc5 {[%clk 0:01:00.6]} 26. dxc5 {[%clk
0:03:01.4]} 26... Nd7 {[%clk 0:00:52.1]} 27. c6 {[%clk 0:02:59.9]} 27... Ne5
{[%clk 0:00:50.4]} 28. Bxe5 {[%clk 0:02:52.3]} 28... fxe5 {[%clk 0:00:50.3]} 29.
Rc1 {[%clk 0:02:51.2]} 29... Rc7 {[%clk 0:00:48.9]} 30. Kf2 {[%clk 0:02:47.1]}
30... Kf7 {[%clk 0:00:48.5]} 31. Ke3 {[%clk 0:02:46.4]} 31... Ke6 {[%clk
0:00:47.9]} 32. g4 {[%clk 0:02:42.4]} 32... Kd6 {[%clk 0:00:47.1]} 33. f4 {[%clk
0:02:40.9]} 33... exf4+ {[%clk 0:00:41.6]} 34. Kxf4 {[%clk 0:02:40.8]} 34...
Rxc6 {[%clk 0:00:39.5]} 35. Rxc6+ {[%clk 0:02:39.2]} 35... Kxc6 {[%clk
0:00:39.4]} 36. Ke5 {[%clk 0:02:38.1]} 36... Kd7 {[%clk 0:00:37.7]} 37. Kf6
{[%clk 0:02:37.5]} 37... Ke8 {[%clk 0:00:34.2]} 38. g5 {[%clk 0:02:34]} 38...
Kf8 {[%clk 0:00:31.8]} 39. e5 {[%clk 0:02:33.1]} 39... Ke8 {[%clk 0:00:30.8]}
40. e6 {[%clk 0:02:32.3]} 40... Kf8 {[%clk 0:00:27.3]} 41. e7+ {[%clk
0:02:31.4]} 41... Ke8 {[%clk 0:00:26]} 42. h3 {[%clk 0:02:30.7]} 42... h5 {[%clk
0:00:18]} 43. gxh6 {[%clk 0:02:27.8]} 43... g5 {[%clk 0:00:16.8]} 44. h7 {[%clk
0:02:27.1]} 44... g4 {[%clk 0:00:15.9]} 45. h8=Q+ {[%clk 0:02:27]} 45... Kd7
{[%clk 0:00:14.2]} 46. e8=Q+ {[%clk 0:02:26.9]} 46... Kd6 {[%clk 0:00:05.1]} 47.
Qe6+ {[%clk 0:02:26.8]} 47... Kc5 {[%clk 0:00:03.7]} 48. Qhc8+ {[%clk
0:02:25.8]} 48... Kd4 {[%clk 0:00:01.9]} 49. Qcd7+ {[%clk 0:02:24.8]} 49... Kc3
{[%clk 0:00:00.5]} 50. Qc4+ {[%clk 0:02:24]} 1-0

[Event "Live Chess"]
[Site "Chess.com"]
[Date "2023.05.21"]
[Round "-"]
[White "zdanevych"]
[Black "daveeeeR"]
[Result "1-0"]
[WhiteElo "1527"]
[BlackElo "1292"]
[TimeControl "300"]
[EndTime "5:27:05 PDT"]
[Termination "zdanevych won by resignation"]

1. d4 {[%clk 0:04:59.2]} 1... d6 {[%clk 0:04:58.1]} 2. c4 {[%clk 0:04:58.8]}
2... Nf6 {[%clk 0:04:57.7]} 3. Nc3 {[%clk 0:04:57.5]} 3... Nbd7 {[%clk
0:04:56.9]} 4. e4 {[%clk 0:04:57]} 4... e5 {[%clk 0:04:56.1]} 5. d5 {[%clk
0:04:55.7]} 5... Be7 {[%clk 0:04:53.4]} 6. h3 {[%clk 0:04:55.1]} 6... O-O {[%clk
0:04:52.4]} 7. Nf3 {[%clk 0:04:54.6]} 7... c6 {[%clk 0:04:51.2]} 8. Be3 {[%clk
0:04:53.3]} 8... cxd5 {[%clk 0:04:49.4]} 9. cxd5 {[%clk 0:04:53.2]} 9... a6
{[%clk 0:04:47.9]} 10. Be2 {[%clk 0:04:46.5]} 10... Nc5 {[%clk 0:04:42.7]} 11.
Bd3 {[%clk 0:04:42.3]} 11... Nxd3+ {[%clk 0:04:40.9]} 12. Qxd3 {[%clk
0:04:42.2]} 12... Bd7 {[%clk 0:04:37]} 13. O-O {[%clk 0:04:41.6]} 13... Qe8
{[%clk 0:04:30.9]} 14. a4 {[%clk 0:04:36.9]} 14... b5 {[%clk 0:04:23.9]} 15. b3
{[%clk 0:04:30.6]} 15... bxa4 {[%clk 0:04:20.6]} 16. bxa4 {[%clk 0:04:28.7]}
16... Qc8 {[%clk 0:04:17.5]} 17. Rfc1 {[%clk 0:04:25.9]} 17... Qb7 {[%clk
0:04:15.4]} 18. Rab1 {[%clk 0:04:22.7]} 18... Bb5 {[%clk 0:04:03.9]} 19. Nxb5
{[%clk 0:04:19]} 19... axb5 {[%clk 0:04:02.7]} 20. Rxb5 {[%clk 0:04:14]} 20...
Qa6 {[%clk 0:03:59.1]} 21. a5 {[%clk 0:04:02]} 21... Nd7 {[%clk 0:03:56.6]} 22.
Bb6 {[%clk 0:03:57.8]} 22... Nxb6 {[%clk 0:03:50.1]} 23. axb6 {[%clk 0:03:53.8]}
23... Rab8 {[%clk 0:03:47.7]} 24. Qb3 {[%clk 0:03:51.1]} 24... Rfc8 {[%clk
0:03:41.2]} 25. Rxc8+ {[%clk 0:03:49.2]} 25... Qxc8 {[%clk 0:03:38.4]} 26. Qb1
{[%clk 0:03:42.6]} 26... Qc4 {[%clk 0:03:31.7]} 27. b7 {[%clk 0:03:40.2]} 27...
Bd8 {[%clk 0:03:27.8]} 28. Nd2 {[%clk 0:03:33.1]} 28... Qc3 {[%clk 0:03:16.3]}
29. Nb3 {[%clk 0:03:28.5]} 29... f6 {[%clk 0:03:11.6]} 30. Na5 {[%clk
0:03:25.8]} 30... Bxa5 {[%clk 0:03:09.7]} 31. Rxa5 {[%clk 0:03:16.8]} 31... Qc7
{[%clk 0:03:06.1]} 32. Rb5 {[%clk 0:03:13.3]} 32... Kf7 {[%clk 0:03:03.9]} 33.
Qb4 {[%clk 0:03:08]} 33... g5 {[%clk 0:03:00.9]} 34. Rb6 {[%clk 0:03:05.8]}
34... Ke7 {[%clk 0:02:58.1]} 35. g3 {[%clk 0:03:00.3]} 35... h5 {[%clk
0:02:53.8]} 36. Kg2 {[%clk 0:02:58.3]} 36... g4 {[%clk 0:02:49.7]} 37. hxg4
{[%clk 0:02:53.6]} 37... hxg4 {[%clk 0:02:48.8]} 38. Qb5 {[%clk 0:02:50.6]}
38... Kf7 {[%clk 0:02:40.3]} 39. Qc6 {[%clk 0:02:47.3]} 39... Qxc6 {[%clk
0:02:21.6]} 40. dxc6 {[%clk 0:02:47.2]} 40... Ke8 {[%clk 0:02:19.2]} 41. c7
{[%clk 0:02:46.6]} 41... Rxb7 {[%clk 0:02:16.2]} 42. Rxb7 {[%clk 0:02:45.3]}
42... Kd7 {[%clk 0:02:14.7]} 43. c8=Q+ {[%clk 0:02:40.5]} 43... Kxc8 {[%clk
0:02:13.1]} 44. Rf7 {[%clk 0:02:40.2]} 1-0

[Event "Live Chess"]
[Site "Chess.com"]
[Date "2023.05.21"]
[Round "-"]
[White "viktorskliarov"]
[Black "sanjesh_ananda"]
[Result "1-0"]
[WhiteElo "2649"]
[BlackElo "1236"]
[TimeControl "300"]
[EndTime "5:27:23 PDT"]
[Termination "viktorskliarov won by resignation"]

1. e4 {[%clk 0:04:57.9]} 1... e5 {[%clk 0:04:58.9]} 2. Nc3 {[%clk 0:04:54.9]}
2... Nf6 {[%clk 0:04:56.5]} 3. Bc4 {[%clk 0:04:54]} 3... Bc5 {[%clk 0:04:55]} 4.
d3 {[%clk 0:04:53.3]} 4... h6 {[%clk 0:04:53.2]} 5. h3 {[%clk 0:04:50.4]} 5...
O-O {[%clk 0:04:51.2]} 6. Nge2 {[%clk 0:04:48.9]} 6... Nc6 {[%clk 0:04:49.2]} 7.
a3 {[%clk 0:04:48.1]} 7... a5 {[%clk 0:04:42.7]} 8. Ng3 {[%clk 0:04:46.1]} 8...
Kh8 {[%clk 0:04:23.9]} 9. O-O {[%clk 0:04:43.7]} 9... Rb8 {[%clk 0:04:13.3]} 10.
Kh2 {[%clk 0:04:39.6]} 10... d6 {[%clk 0:04:04]} 11. Be3 {[%clk 0:04:29.4]}
11... Nd4 {[%clk 0:03:54.9]} 12. Nce2 {[%clk 0:04:19.2]} 12... b5 {[%clk
0:03:45.7]} 13. Ba2 {[%clk 0:04:16.4]} 13... Be6 {[%clk 0:03:03.4]} 14. Nxd4
{[%clk 0:04:06.5]} 14... Bxd4 {[%clk 0:02:56.6]} 15. Bxd4 {[%clk 0:04:05.2]}
15... exd4 {[%clk 0:02:53.3]} 16. f4 {[%clk 0:04:01.1]} 16... Bxa2 {[%clk
0:02:35.5]} 17. Rxa2 {[%clk 0:03:59.5]} 17... Nd7 {[%clk 0:02:20]} 18. Ra1
{[%clk 0:03:49.5]} 18... Qf6 {[%clk 0:02:04.8]} 19. Qg4 {[%clk 0:03:38.2]} 19...
Nc5 {[%clk 0:01:54.1]} 20. Rae1 {[%clk 0:03:31.3]} 20... Rfe8 {[%clk 0:01:40.4]}
21. e5 {[%clk 0:02:59]} 21... Qe7 {[%clk 0:01:35.6]} 22. Nf5 {[%clk 0:02:53.8]}
22... Qf8 {[%clk 0:01:30.9]} 23. Nxd4 {[%clk 0:02:52.6]} 23... d5 {[%clk
0:01:02.9]} 24. f5 {[%clk 0:02:46.5]} 24... Nd7 {[%clk 0:00:54.1]} 25. e6 {[%clk
0:02:45.3]} 25... Nf6 {[%clk 0:00:45.2]} 26. Qg3 {[%clk 0:02:33.8]} 26... c5
{[%clk 0:00:39.1]} 27. Nc6 {[%clk 0:02:32]} 27... Rbc8 {[%clk 0:00:36.6]} 28.
Ne5 {[%clk 0:02:30]} 28... fxe6 {[%clk 0:00:34.1]} 29. Ng6+ {[%clk 0:02:29]} 1-0

[Event "Live Chess"]
[Site "Chess.com"]
[Date "2023.05.21"]
[Round "-"]
[White "domrobson"]
[Black "Biranidun"]
[Result "0-1"]
[WhiteElo "1741"]
[BlackElo "2523"]
[TimeControl "300"]
[EndTime "5:27:37 PDT"]
[Termination "Biranidun won by resignation"]

1. d4 {[%clk 0:04:58.6]} 1... Nf6 {[%clk 0:04:59]} 2. c3 {[%clk 0:04:57.4]} 2...
g6 {[%clk 0:04:58.4]} 3. Bf4 {[%clk 0:04:55.9]} 3... Bg7 {[%clk 0:04:58]} 4. Nd2
{[%clk 0:04:52.1]} 4... O-O {[%clk 0:04:57.6]} 5. e4 {[%clk 0:04:51.6]} 5... d6
{[%clk 0:04:56.9]} 6. Bd3 {[%clk 0:04:50.5]} 6... c5 {[%clk 0:04:55.5]} 7. Ngf3
{[%clk 0:04:48.5]} 7... Nbd7 {[%clk 0:04:53.3]} 8. e5 {[%clk 0:04:46.9]} 8...
Nd5 {[%clk 0:04:52.1]} 9. Bg3 {[%clk 0:04:44.3]} 9... cxd4 {[%clk 0:04:51.5]}
10. cxd4 {[%clk 0:04:43.3]} 10... dxe5 {[%clk 0:04:49.4]} 11. dxe5 {[%clk
0:04:41.5]} 11... Nc5 {[%clk 0:04:48.7]} 12. Bc4 {[%clk 0:04:36.6]} 12... b5
{[%clk 0:04:43.2]} 13. Bxd5 {[%clk 0:04:29.5]} 13... Qxd5 {[%clk 0:04:42]} 14.
O-O {[%clk 0:04:29]} 14... Bb7 {[%clk 0:04:38]} 15. Nb3 {[%clk 0:04:26.1]} 15...
Na4 {[%clk 0:04:34.4]} 16. Qxd5 {[%clk 0:04:23.8]} 16... Bxd5 {[%clk 0:04:34.3]}
17. Rad1 {[%clk 0:04:17.1]} 17... e6 {[%clk 0:04:32.3]} 18. Rd2 {[%clk
0:04:12.4]} 18... Bh6 {[%clk 0:04:29.1]} 19. Rc2 {[%clk 0:04:07.8]} 19... Rac8
{[%clk 0:04:28.8]} 20. Rfc1 {[%clk 0:04:05.2]} 20... Bxc1 {[%clk 0:04:27]} 0-1

[Event "Live Chess"]
[Site "Chess.com"]
[Date "2023.05.21"]
[Round "-"]
[White "mliszewski"]
[Black "mach247"]
[Result "1-0"]
[WhiteElo "1808"]
[BlackElo "1351"]
[TimeControl "300"]
[EndTime "5:27:48 PDT"]
[Termination "mliszewski won on time"]

1. d4 {[%clk 0:04:59.4]} 1... Nf6 {[%clk 0:04:58.8]} 2. Bg5 {[%clk 0:04:58.7]}
2... e6 {[%clk 0:04:57.7]} 3. Nd2 {[%clk 0:04:56.8]} 3... Be7 {[%clk 0:04:57]}
4. e3 {[%clk 0:04:56.3]} 4... d5 {[%clk 0:04:56.5]} 5. c3 {[%clk 0:04:54]} 5...
h6 {[%clk 0:04:55.8]} 6. Bh4 {[%clk 0:04:52.6]} 6... Nbd7 {[%clk 0:04:48]} 7. f4
{[%clk 0:04:50.3]} 7... c5 {[%clk 0:04:47.1]} 8. Bd3 {[%clk 0:04:49.4]} 8... O-O
{[%clk 0:04:19.2]} 9. Ngf3 {[%clk 0:04:48.5]} 9... cxd4 {[%clk 0:04:17.3]} 10.
exd4 {[%clk 0:04:47.5]} 10... Nb6 {[%clk 0:04:16.3]} 11. O-O {[%clk 0:04:46.2]}
11... Bd7 {[%clk 0:04:15.2]} 12. Ne5 {[%clk 0:04:45.3]} 12... Rc8 {[%clk
0:04:11.1]} 13. Rf3 {[%clk 0:04:43.5]} 13... a6 {[%clk 0:04:08.8]} 14. Rg3
{[%clk 0:04:42.5]} 14... Bb5 {[%clk 0:04:05.4]} 15. Ndf3 {[%clk 0:04:40]} 15...
Bxd3 {[%clk 0:04:04.7]} 16. Qxd3 {[%clk 0:04:39.2]} 16... Nc4 {[%clk 0:04:03]}
17. b3 {[%clk 0:04:33.7]} 17... Nxe5 {[%clk 0:03:59]} 18. fxe5 {[%clk
0:04:32.8]} 18... Nh7 {[%clk 0:03:53.9]} 19. Bxe7 {[%clk 0:04:30.2]} 19... Qxe7
{[%clk 0:03:53.8]} 20. Qe3 {[%clk 0:04:29.6]} 20... Kh8 {[%clk 0:03:43.6]} 21.
Rf1 {[%clk 0:04:25.7]} 21... f5 {[%clk 0:03:35.5]} 22. Qf4 {[%clk 0:04:18.5]}
22... g5 {[%clk 0:03:23.3]} 23. Qc1 {[%clk 0:04:09.4]} 23... f4 {[%clk
0:03:04.3]} 24. Rg4 {[%clk 0:04:07]} 24... h5 {[%clk 0:03:02.4]} 25. Nxg5 {[%clk
0:03:49.7]} 25... Nxg5 {[%clk 0:02:59.9]} 26. Rgxf4 {[%clk 0:03:43.3]} 26...
Rxf4 {[%clk 0:02:56]} 27. Rxf4 {[%clk 0:03:40.6]} 27... Ne4 {[%clk 0:02:39.4]}
28. Qd1 {[%clk 0:03:31.1]} 28... Qg5 {[%clk 0:02:25]} 29. Qf3 {[%clk 0:03:22.7]}
29... Rg8 {[%clk 0:02:17.8]} 30. c4 {[%clk 0:02:59.8]} 30... Nd2 {[%clk
0:01:50.6]} 31. Qf2 {[%clk 0:02:57.7]} 31... Ne4 {[%clk 0:01:38.1]} 32. Qf3
{[%clk 0:02:52.8]} 32... h4 {[%clk 0:01:25.3]} 33. cxd5 {[%clk 0:02:37.8]} 33...
exd5 {[%clk 0:01:23.2]} 34. Rf5 {[%clk 0:02:29.9]} 34... Qc1+ {[%clk 0:01:15.7]}
35. Qf1 {[%clk 0:02:24]} 35... Qe3+ {[%clk 0:01:09.2]} 36. Kh1 {[%clk
0:02:18.6]} 36... Qh6 {[%clk 0:00:15.9]} 37. Rf3 {[%clk 0:02:02.8]} 37... Qg6
{[%clk 0:00:09.5]} 38. Qe2 {[%clk 0:01:56.1]} 38... h3 {[%clk 0:00:06]} 39.
Rxh3+ {[%clk 0:01:54.6]} 1-0

[Event "Live Chess"]
[Site "Chess.com"]
[Date "2023.05.21"]
[Round "-"]
[White "chessfiction"]
[Black "WelshTiger"]
[Result "0-1"]
[WhiteElo "2304"]
[BlackElo "2300"]
[TimeControl "300"]
[EndTime "5:28:02 PDT"]
[Termination "WelshTiger won by resignation"]

1. e4 {[%clk 0:04:57.4]} 1... c6 {[%clk 0:04:56.6]} 2. d4 {[%clk 0:04:56.3]}
2... d5 {[%clk 0:04:56]} 3. e5 {[%clk 0:04:55.9]} 3... c5 {[%clk 0:04:54.3]} 4.
Nf3 {[%clk 0:04:55.4]} 4... Nc6 {[%clk 0:04:52.8]} 5. dxc5 {[%clk 0:04:54.2]}
5... Bg4 {[%clk 0:04:49.8]} 6. Bb5 {[%clk 0:04:50.8]} 6... e6 {[%clk 0:04:48.9]}
7. Be3 {[%clk 0:04:48]} 7... Ne7 {[%clk 0:04:41.1]} 8. O-O {[%clk 0:04:44.6]}
8... Ng6 {[%clk 0:04:36.5]} 9. c4 {[%clk 0:04:34]} 9... Nxe5 {[%clk 0:04:29.4]}
10. Nxe5 {[%clk 0:04:32.7]} 10... Bxd1 {[%clk 0:04:27]} 11. Nxc6 {[%clk
0:04:32.3]} 11... bxc6 {[%clk 0:04:25.7]} 12. Bxc6+ {[%clk 0:04:30.2]} 12... Ke7
{[%clk 0:04:25.2]} 13. Bxa8 {[%clk 0:04:23.1]} 13... Be2 {[%clk 0:04:23.1]} 14.
Re1 {[%clk 0:04:20.9]} 14... Bxc4 {[%clk 0:04:20.8]} 15. Bc6 {[%clk 0:04:18.7]}
15... Qa5 {[%clk 0:04:14.4]} 16. Nc3 {[%clk 0:04:17.3]} 16... Kd8 {[%clk
0:04:01.8]} 17. a3 {[%clk 0:04:10.2]} 17... Qc7 {[%clk 0:03:49.5]} 18. Ba4
{[%clk 0:03:43.9]} 18... Bxc5 {[%clk 0:03:47.6]} 19. Bg5+ {[%clk 0:03:41.6]}
19... Be7 {[%clk 0:03:44.9]} 20. Bxe7+ {[%clk 0:03:39.3]} 20... Qxe7 {[%clk
0:03:38.4]} 21. Rad1 {[%clk 0:03:37.5]} 21... Qf6 {[%clk 0:03:14.6]} 22. Ne4
{[%clk 0:03:30.3]} 22... Qxb2 {[%clk 0:03:03.5]} 23. Rb1 {[%clk 0:03:23.9]}
23... Qxa3 {[%clk 0:03:02.6]} 24. Rb8+ {[%clk 0:03:02.6]} 24... Kc7 {[%clk
0:02:56.3]} 25. Rxh8 {[%clk 0:02:56.8]} 25... dxe4 {[%clk 0:02:50.2]} 26. Bc2
{[%clk 0:02:01]} 26... Qc3 {[%clk 0:02:42.3]} 27. Rc1 {[%clk 0:01:43.3]} 27...
Qd2 {[%clk 0:02:37.1]} 28. Ra1 {[%clk 0:01:35.9]} 28... Qxc2 {[%clk 0:02:35.3]}
29. h3 {[%clk 0:01:31.8]} 29... a6 {[%clk 0:02:31.3]} 30. Rxh7 {[%clk
0:01:29.9]} 30... Qc3 {[%clk 0:02:29.5]} 31. Re1 {[%clk 0:01:23.1]} 31... Qxe1+
{[%clk 0:02:27.7]} 0-1

[Event "Live Chess"]
[Site "Chess.com"]
[Date "2023.05.21"]
[Round "-"]
[White "JohanKjeldahl"]
[Black "Berdgross"]
[Result "1-0"]
[WhiteElo "1865"]
[BlackElo "682"]
[TimeControl "300"]
[EndTime "5:28:12 PDT"]
[Termination "JohanKjeldahl won by checkmate"]

1. e4 {[%clk 0:04:58.1]} 1... e5 {[%clk 0:04:59.1]} 2. Nf3 {[%clk 0:04:56.3]}
2... d6 {[%clk 0:04:58.6]} 3. d4 {[%clk 0:04:55.2]} 3... Bg4 {[%clk 0:04:58]} 4.
Bc4 {[%clk 0:04:50.5]} 4... exd4 {[%clk 0:04:55.3]} 5. Qxd4 {[%clk 0:04:46.9]}
5... Bxf3 {[%clk 0:04:48.4]} 6. gxf3 {[%clk 0:04:45.5]} 6... Nf6 {[%clk
0:04:42.4]} 7. Nc3 {[%clk 0:04:43.3]} 7... Nc6 {[%clk 0:04:40.8]} 8. Qe3 {[%clk
0:04:41.4]} 8... Be7 {[%clk 0:04:35.9]} 9. Bd2 {[%clk 0:04:39]} 9... O-O {[%clk
0:04:33.9]} 10. O-O-O {[%clk 0:04:37.9]} 10... h6 {[%clk 0:04:31.8]} 11. Rhg1
{[%clk 0:04:36]} 11... a6 {[%clk 0:04:24.6]} 12. Qxh6 {[%clk 0:04:34.1]} 12...
Nd4 {[%clk 0:04:14.7]} 13. Rxg7# {[%clk 0:04:29]} 1-0